fUSD/lending_fUSD_20260108
["ID","MTS","AMOUNT","RATE_DAILY","PERIOD"]
[401066375,1767899445990,-1152.0,0.00017378,2]
[401066376,1767899446001,-10070.76240848,0.00017379,2]
[401066377,1767899446012,-1000.0,0.000174,2]
[401066378,1767899446023,-1864.0,0.00017424,2]
[401066379,1767899446034,-166.66,0.00017457,2]
[401066380,1767899446044,-168.52,0.00017477,2]
[401066381,1767899446054,-1875.75099502,0.00017479,2]
[401066383,1767899446064,-1000.0,0.00017487,2]
[401066385,1767899446074,-2000.0,0.000175,2]
[401066387,1767899446085,-1000.0,0.000175,2]
[401066388,1767899446096,-3000.0,0.00017502,2]
[401066389,1767899446106,-3000.0,0.00017502,2]
[401066390,1767899446116,-4609.0,0.00017517,2]
[401066391,1767899446126,-3868.4,0.00017534,2]
[401066392,1767899446136,-1042.30773041,0.00017534,2]
[401066393,1767899446146,-10070.76240848,0.00017553,2]
[401066394,1767899446157,-1000.0,0.00017574,2]
[401066395,1767899446167,-157.72323008,0.00017575,2]
[401066396,1767899446177,-1000.0,0.00017588,2]
[401066397,1767899446187,-208.63588649,0.00017598,2]
[401066398,1767899446198,-1000.0,0.000176,2]
[401066399,1767899446208,-14991.4518794,0.0001764,2]
[401066400,1767899446218,-311.1,0.00017647,2]
[401066401,1767899446228,-151.0,0.00017647,2]
[401066402,1767899446239,-574.12855637,0.00017647,2]
[401066403,1767899446249,-293.26916709,0.00017647,2]
[401066404,1767899446259,-151.0,0.00017647,2]
[401066405,1767899446273,-258.0,0.00017653,2]
[401066406,1767899446283,-1000.0,0.00017656,2]
[401066407,1767899446294,-1000.0,0.00017671,2]
[401066408,1767899446305,-258.0,0.00017673,2]
[401066409,1767899446316,-162.0,0.0001768,2]
[401066410,1767899446327,-833.0,0.0001768,2]
[401066411,1767899446338,-162.0,0.0001768,2]
[401066412,1767899446350,-162.0,0.0001768,2]
[401066413,1767899446360,-833.0,0.0001768,2]
[401066414,1767899446371,-162.0,0.0001768,2]
[401066415,1767899446382,-25000.0,0.00017689,3]
[401066416,1767899446392,-25000.0,0.00017698,3]
[401066417,1767899446402,-1000.0,0.000177,2]
[401066418,1767899446411,-25000.0,0.00017706,3]
[401066419,1767899446423,-1000.0,0.00017708,2]
[401066420,1767899446433,-25000.0,0.00017715,3]
[401066421,1767899446443,-1154.367,0.0001772,2]
[401066422,1767899446454,-25000.0,0.00017724,3]
[401066423,1767899446463,-1000.0,0.00017724,2]
[401066424,1767899446473,-10070.76240848,0.00017726,2]
[401066425,1767899446483,-25000.0,0.00017733,3]
[401066426,1767899446494,-258.0,0.00017734,2]
[401066427,1767899446504,-1000.0,0.00017739,2]
[401066428,1767899446514,-385.39614839,0.0001774,2]
[401066429,1767899446524,-25000.0,0.00017742,3]
[401066430,1767899446535,-1000.0,0.00017744,2]
[401066431,1767899446545,-25000.0,0.0001775,3]
[401066432,1767899446556,-151.0,0.00017756,2]
[401066433,1767899446566,-25000.0,0.00017759,3]
[401066434,1767899446578,-25000.0,0.00017768,3]
[401066435,1767899446588,-25000.0,0.00017777,3]
[401066436,1767899446599,-25000.0,0.00017786,3]
[401066437,1767899446609,-25000.0,0.00017794,3]
[401066438,1767899446620,-1000.0,0.000178,2]
[401066439,1767899446632,-25000.0,0.00017803,3]
[401066440,1767899446647,-319.83496494,0.00017808,3]
[401066441,1767899446658,-3868.4,0.00017808,2]
[401066442,1767899446671,-258.0,0.00017812,2]
[401066443,1767899446681,-25000.0,0.00017812,3]
[401066444,1767899446692,-500.0,0.00017819,2]
[401066445,1767899446707,-500.0,0.00017819,2]
[401066446,1767899446719,-500.0,0.00017819,2]
[401066447,1767899446731,-770.14,0.00017819,2]
[401066448,1767899446743,-500.0,0.00017819,2]
[401066449,1767899446754,-500.0,0.00017819,2]
[401066450,1767899446766,-500.0,0.00017819,2]
[401066451,1767899446778,-758.96088212,0.0001782,2]
[401066452,1767899446788,-25000.0,0.00017821,3]
[401066453,1767899446799,-1000.0,0.00017825,2]
[401066454,1767899446811,-25000.0,0.0001783,3]
[401066455,1767899446822,-2563.74337966,0.0001783,2]
[401066456,1767899446833,-25000.0,0.00017838,3]
[401066457,1767899446844,-196.64,0.00017839,2]
[401066458,1767899446855,-25000.0,0.00017847,3]
[401066459,1767899446868,-200.0,0.00017855,2]
[401066460,1767899446879,-200.0,0.00017856,2]
[401066461,1767899446890,-25000.0,0.00017856,3]
[401066462,1767899446903,-2000.0,0.00017856,2]
[401066463,1767899446914,-200.0,0.00017856,2]
[401066464,1767899446926,-200.0,0.00017856,2]
[401066465,1767899446937,-168.0,0.00017857,2]
[401066466,1767899446948,-25000.0,0.00017865,3]
[401066467,1767899446959,-3989.0,0.00017867,2]
[401066468,1767899446969,-10000.0,0.00017873,2]
[401066469,1767899446980,-25000.0,0.00017874,3]
[401066470,1767899446990,-1000.0,0.00017874,2]
[401066471,1767899447001,-1000.0,0.00017879,2]
[401066472,1767899447012,-25000.0,0.00017882,3]
[401066473,1767899447021,-1000.0,0.00017886,2]
[401066474,1767899447031,-1000.0,0.00017889,2]
[401066475,1767899447041,-25000.0,0.00017891,3]
[401066476,1767899447051,-150.0,0.00017893,2]
[401066477,1767899447061,-612.54961922,0.00017899,2]
[401066478,1767899447071,-350.40168713,0.000179,2]
[401066479,1767899447081,-25000.0,0.000179,3]
[401066480,1767899447090,-26333.7829623,0.000179,2]
[401066481,1767899447100,-211.30647502,0.000179,2]
[401066482,1767899447111,-10070.76240848,0.000179,2]
[401066483,1767899447121,-190.04272048,0.000179,3]
[401066484,1767899447131,-13576.68091192,0.000179,2]
[401066485,1767899447141,-16359.0,0.000179,2]
[401066486,1767899447151,-1000.0,0.00017902,2]
[401066487,1767899447162,-1000.0,0.00017925,2]
[401066488,1767899447174,-150.0,0.00017926,2]
[401066489,1767899447185,-1000.0,0.00017929,2]
[401066490,1767899447195,-3989.0,0.00017948,2]
[401066491,1767899447206,-1000.0,0.00017951,2]
[401066492,1767899447216,-500.0,0.0001797,2]
[401066493,1767899447227,-500.0,0.0001797,2]
[401066494,1767899447237,-500.0,0.0001797,2]
[401066495,1767899447247,-500.0,0.0001797,2]
[401066496,1767899447258,-584.41347442,0.0001797,2]
[401066497,1767899447269,-1000.0,0.0001797,2]
[401066498,1767899447281,-1000.0,0.0001797,2]
[401066499,1767899447292,-1000.0,0.0001797,2]
[401066500,1767899447304,-1000.0,0.0001797,2]
[401066501,1767899447317,-1000.0,0.0001797,2]
[401066502,1767899447328,-1000.0,0.0001797,2]
[401066503,1767899447342,-1446.54474908,0.0001797,2]
[401066504,1767899447353,-8200.0,0.00017973,2]
[401066505,1767899447364,-7567.0,0.00017973,2]
[401066506,1767899447375,-356.0,0.00017973,2]
[401066507,1767899447386,-500.0,0.00017973,2]
[401066508,1767899447397,-500.0,0.00017973,2]
[401066509,1767899447407,-500.0,0.00017973,2]
[401066510,1767899447418,-500.0,0.00017973,2]
[401066511,1767899447429,-500.0,0.00017973,2]
[401066512,1767899447440,-500.0,0.00017973,2]
[401066513,1767899447451,-500.0,0.00017973,2]
[401066514,1767899447461,-500.17178809,0.00017973,2]
[401066515,1767899447471,-513.02244381,0.00017973,2]
[401066516,1767899447482,-426.73386812,0.00017973,2]
[401066517,1767899447493,-568.48476984,0.00017973,2]
[401066518,1767899447503,-500.0,0.00017973,2]
[401066519,1767899447515,-504.24318867,0.00017973,2]
[401066520,1767899447526,-150.49880534,0.00017973,2]
[401066521,1767899447537,-500.0,0.00017973,2]
[401066522,1767899447548,-150.0,0.00017973,2]
[401066523,1767899447559,-385.16009683,0.00017973,2]
[401066524,1767899447570,-500.0,0.00017973,2]
[401066525,1767899447581,-159.904,0.00017973,2]
[401066526,1767899447592,-160.89060159,0.00017973,2]
[401066527,1767899447603,-504.45710441,0.00017973,2]
[401066528,1767899447613,-500.0,0.00017973,2]
[401066529,1767899447624,-500.0,0.00017973,2]
[401066530,1767899447635,-500.0,0.00017973,2]
[401066531,1767899447646,-501.18870733,0.00017973,2]
[401066532,1767899447660,-500.0,0.00017973,2]
[401066533,1767899447671,-500.0,0.00017973,2]
[401066534,1767899447682,-500.0,0.00017973,2]
[401066535,1767899447692,-500.0,0.00017973,2]
[401066536,1767899447703,-500.0,0.00017973,2]
[401066537,1767899447714,-500.0,0.00017973,2]
[401066538,1767899447726,-160.81509317,0.00017973,2]
[401066539,1767899447737,-500.0,0.00017973,2]
[401066540,1767899447747,-150.0,0.00017973,2]
[401066541,1767899447757,-500.0,0.00017982,2]
[401066542,1767899447768,-320.87822696,0.0001799,2]
[401066543,1767899447778,-500.0,0.0001799,2]
[401066544,1767899447791,-500.0,0.0001799,2]
[401066545,1767899447801,-500.0,0.0001799,2]
[401066546,1767899447812,-500.0,0.0001799,2]
[401066547,1767899447823,-770.14,0.0001799,2]
[401066548,1767899447834,-770.14,0.0001799,2]
[401066549,1767899447844,-500.0,0.0001799,2]
[401066550,1767899447855,-500.0,0.0001799,2]
[401066551,1767899447865,-500.0,0.0001799,2]
[401066552,1767899447875,-500.0,0.0001799,2]
[401066553,1767899447886,-500.0,0.0001799,2]
[401066554,1767899447897,-500.0,0.0001799,2]
[401066555,1767899447909,-385.39614839,0.0001799,2]
[401066556,1767899447922,-385.39614839,0.0001799,2]
[401066557,1767899447933,-1000.0,0.00017995,2]
[401066558,1767899447945,-200.150002,0.00017996,2]
[401066559,1767899447956,-233.29795827,0.00017999,2]
[401066560,1767899448206,-150.0,0.00017999,2]
[401066561,1767899448218,-115928.8798608,0.00017999,2]
[401066562,1767899448231,-434551.7590697,0.00017999,2]
[401066563,1767899448244,-1006.1979,0.00017999,2]
[401066564,1767899448255,-4193.5765097,0.00017999,2]
[401066565,1767899448267,-162.2870782,0.00017999,2]
[401066566,1767899448278,-542.95517596,0.00017999,2]
[401066567,1767899448288,-50333.2030994,0.00017999,2]
[401066568,1767899448299,-300.0,0.00017999,2]
[401066569,1767899448311,-300.0,0.00017999,2]
[401066570,1767899448322,-666.0,0.00017999,2]
[401066571,1767899448332,-564.92009029,0.00017999,2]
[401066572,1767899448345,-500.0,0.00017999,2]
[401066573,1767899448357,-500.0,0.00017999,2]
[401066574,1767899448368,-500.0,0.00017999,2]
[401066575,1767899448379,-500.0,0.00017999,2]
[401066576,1767899448394,-500.0,0.00017999,2]
[401066577,1767899448405,-500.0,0.00017999,2]
[401066578,1767899448416,-500.0,0.00017999,2]
[401066579,1767899448428,-500.0,0.00017999,2]
[401066580,1767899448442,-500.0,0.00017999,2]
[401066581,1767899448455,-443.42722753,0.00017999,2]
[401066582,1767899448468,-770.14,0.00017999,2]
[401066583,1767899448481,-770.14,0.00017999,2]
[401066584,1767899448493,-770.14,0.00017999,2]
[401066585,1767899448503,-770.14,0.00017999,2]
[401066586,1767899448514,-770.14,0.00017999,2]
[401066587,1767899448525,-770.14,0.00017999,2]
[401066588,1767899448537,-770.14,0.00017999,2]
[401066589,1767899448550,-770.14,0.00017999,2]
[401066590,1767899448561,-770.14,0.00017999,2]
[401066591,1767899448572,-770.14,0.00017999,2]
[401066592,1767899448584,-770.14,0.00017999,2]
[401066593,1767899448594,-770.14,0.00017999,2]
[401066594,1767899448605,-770.14,0.00017999,2]
[401066595,1767899448618,-770.14,0.00017999,2]
[401066596,1767899448628,-770.14,0.00017999,2]
[401066597,1767899448639,-770.3377512,0.00017999,2]
[401066598,1767899448649,-60264.7747884,0.00017999,2]
[401066599,1767899448659,-11518.53087648,0.00017999,2]
[401066600,1767899448670,-666.0,0.00017999,2]
[401066601,1767899448680,-300.0,0.00017999,2]
[401066602,1767899448691,-300.0,0.00017999,2]
[401066603,1767899448703,-500.0,0.00017999,2]
[401066604,1767899448714,-500.0,0.00017999,2]
[401066605,1767899448726,-500.0,0.00017999,2]
[401066606,1767899448737,-666.0,0.00017999,2]
[401066607,1767899448748,-500.0,0.00017999,2]
[401066608,1767899448760,-500.0,0.00017999,2]
[401066609,1767899448770,-500.0,0.00017999,2]
[401066610,1767899448781,-500.0,0.00017999,2]
[401066611,1767899448791,-500.0,0.00017999,2]
[401066612,1767899448802,-500.0,0.00017999,2]
[401066613,1767899448812,-500.0,0.00017999,2]
[401066614,1767899448823,-640.4513734,0.00017999,2]
[401066615,1767899448833,-170.8562664,0.00017999,2]
[401066616,1767899448843,-300.0,0.00017999,2]
[401066617,1767899448854,-666.0,0.00017999,2]
[401066618,1767899448867,-218.808881,0.00017999,2]
[401066619,1767899448878,-218.808881,0.00017999,2]
[401066620,1767899448890,-218.808881,0.00017999,2]
[401066621,1767899448900,-218.808881,0.00017999,2]
[401066622,1767899448912,-300.0,0.00017999,2]
[401066623,1767899448926,-151.0,0.00017999,2]
[401066624,1767899448937,-151.0,0.00017999,2]
[401066625,1767899448949,-151.0,0.00017999,2]
[401066626,1767899448960,-300.0,0.00017999,2]
[401066627,1767899448970,-500.0,0.00017999,2]
[401066628,1767899448981,-500.0,0.00017999,2]
[401066629,1767899448992,-386.45682453,0.00017999,2]
[401066630,1767899449003,-300.0,0.00017999,2]
[401066631,1767899449014,-5970.77362135,0.00017999,2]
[401066632,1767899449025,-1000.0,0.00018,2]
[401066633,1767899449036,-836.47750939,0.00018,2]
[401066634,1767899449047,-727355.09773312,0.00018,2]
[401066635,1767899449116,-1608.8499975,0.00018,2]
[401066636,1767899449151,-345.94164096,0.00018,2]
[401066637,1767899449238,-3011.72215339,0.00018,2]
[401066638,1767899449251,-382.40077245,0.00018,2]
[401066639,1767899451395,-310.81392375,0.00013161,2]
[401066640,1767899451408,-500.0,0.00013981,2]
[401066641,1767899451420,-500.0,0.00013981,2]
[401066642,1767899451432,-112.94285941,0.00013981,2]
[401066643,1767899451445,-387.05714059,0.00013981,2]
[401066644,1767899451458,-500.0,0.00013981,2]
[401066645,1767899451469,-151.0,0.00015125,2]
[401066646,1767899451480,-151.0,0.00015125,2]
[401066647,1767899451494,-500.0,0.00016437,2]
[401066648,1767899451508,-500.0,0.00017819,2]
[401066649,1767899451520,-7709.44285941,0.00018,2]
[401066650,1767899451585,-631.49851381,0.00018,2]
[401066651,1767899451598,-16258.22123408,0.00018,2]
[401066652,1767899451611,-352.00649617,0.00018,2]
[401066653,1767899453077,-2455.0960198,0.00012317,2]
[401066654,1767899453088,-2455.0960198,0.00013896,2]
[401066655,1767899453100,-89.8079604,0.00013981,2]
[401066656,1767899453239,-221.00596334,0.00013981,2]
[401066657,1767899453250,-897.5456207,0.00015474,2]
[401066658,1767899453262,-1557.5503991,0.00015474,2]
[401066659,1767899453275,-150.0,0.00016438,2]
[401066660,1767899453288,-150.0,0.00016493,2]
[401066661,1767899453299,-65.96717087,0.00017053,2]
[401066662,1767899453328,-2389.12884893,0.00017053,2]
[401066663,1767899453339,-612.5496192,0.000179,2]
[401066664,1767899453351,-1644.49918457,0.000179,2]
[401066665,1767899453486,-794.30477733,0.000179,2]
[401066675,1767900394863,-174.02583464,0.00011663,2]
[401066676,1767900394890,-12.93207547,0.00011666,2]
[401066678,1767900441784,999.0,0.00012135,3]
[401066692,1767900631603,-208.63588649,0.00011565,2]
[401066693,1767900631614,-334.81036684,0.00011565,2]
[401066694,1767900631623,-292.95907095,0.00011565,2]
[401066695,1767900631633,-151.0,0.00011662,2]
[401066696,1767900631643,-1200.0,0.00011664,2]
[401066697,1767900631652,-177.0,0.00011664,2]
[401066698,1767900631663,-150.0,0.00011664,2]
[401066699,1767900631673,-6058.50059608,0.00011665,2]
[401066700,1767900631686,-8021.59427956,0.00011665,2]
[401066701,1767900631697,-35506.55400423,0.00011665,2]
[401066708,1767900631808,-4655.84505265,0.00011665,2]
[401066710,1767900631819,-565.41868301,0.00011665,2]
[401066712,1767900631830,-35689.34037994,0.00011665,2]
[401066716,1767900631841,-6053.8,0.00011665,2]
[401066718,1767900631852,-3894.1177145,0.00011665,2]
[401066817,1767900638211,-592.47286909,0.00011665,2]
[401066821,1767900638246,-2927.71911133,0.00011665,2]
[401066824,1767900638258,-1099.16540574,0.00011665,2]
[401066826,1767900638269,-841.2452456,0.00011665,2]
[401066994,1767900639881,-910.9547551,0.00011665,2]
[401066997,1767900639903,-893183.27190317,0.00011665,2]
[401066999,1767900639913,-250.0,0.00011665,2]
[401067001,1767900639921,-161.09375916,0.00011666,2]
[401067003,1767900639930,-500.0,0.00011696,2]
[401067005,1767900639940,-195.0,0.00011714,2]
[401067007,1767900639948,-195.0,0.00011744,2]
[401067009,1767900639957,-155.15572809,0.00011761,2]
[401067011,1767900639967,-500.0,0.00011761,2]
[401067013,1767900639976,-500.0,0.00011761,2]
[401067015,1767900639984,-500.0,0.00011761,2]
[401067017,1767900639993,-500.0,0.00011761,2]
[401067019,1767900640003,-500.0,0.00011761,2]
[401067021,1767900640012,-500.0,0.00011761,2]
[401067023,1767900640021,-500.0,0.00011761,2]
[401067025,1767900640030,-500.0,0.00011761,2]
[401067027,1767900640039,-500.0,0.00011761,2]
[401067029,1767900640048,-500.0,0.00011761,2]
[401067031,1767900640057,-500.0,0.00011761,2]
[401067033,1767900640065,-500.0,0.00011761,2]
[401067035,1767900640075,-500.0,0.00011761,2]
[401067037,1767900640083,-500.0,0.00011761,2]
[401067039,1767900640093,-500.0,0.00011761,2]
[401067041,1767900640102,-500.0,0.00011761,2]
[401067042,1767900640111,-500.0,0.00011761,2]
[401067044,1767900640120,-500.0,0.00011761,2]
[401067046,1767900640129,-500.0,0.00011761,2]
[401067048,1767900640138,-500.0,0.00011761,2]
[401067050,1767900640147,-500.0,0.00011761,2]
[401067052,1767900640155,-530.34481604,0.00011761,2]
[401067054,1767900640164,-500.0,0.00011761,2]
[401067057,1767900640176,-500.0,0.00011761,2]
[401067058,1767900640185,-500.0,0.00011761,2]
[401067061,1767900640194,-500.0,0.00011761,2]
[401067063,1767900640204,-500.0,0.00011761,2]
[401067065,1767900640213,-500.0,0.00011761,2]
[401067067,1767900640222,-500.0,0.00011761,2]
[401067069,1767900640230,-500.0,0.00011761,2]
[401067071,1767900640239,-500.0,0.00011761,2]
[401067073,1767900640250,-500.0,0.00011761,2]
[401067075,1767900640259,-500.0,0.00011761,2]
[401067077,1767900640268,-500.0,0.00011761,2]
[401067079,1767900640277,-500.0,0.00011761,2]
[401067081,1767900640286,-500.0,0.00011761,2]
[401067083,1767900640295,-500.0,0.00011761,2]
[401067085,1767900640304,-500.0,0.00011761,2]
[401067087,1767900640313,-500.0,0.00011761,2]
[401067089,1767900640323,-500.0,0.00011761,2]
[401067091,1767900640332,-500.0,0.00011761,2]
[401067093,1767900640341,-500.0,0.00011761,2]
[401067095,1767900640350,-500.0,0.00011761,2]
[401067096,1767900640359,-500.0,0.00011761,2]
[401067097,1767900640368,-500.0,0.00011761,2]
[401067098,1767900640380,-500.0,0.00011761,2]
[401067099,1767900640389,-500.0,0.00011761,2]
[401067100,1767900640398,-600.0,0.00011761,2]
[401067101,1767900640407,-271.3,0.00011766,2]
[401067102,1767900640416,-1454.417,0.00011766,2]
[401067103,1767900640427,-1219.52379571,0.00011766,2]
[401067104,1767900640436,-4517.32,0.00011766,2]
[401067105,1767900640448,-9999.99,0.00011766,2]
[401067106,1767900640457,-467.01,0.00011766,2]
[401067107,1767900640466,-18512.28772446,0.00011848,2]
[401067108,1767900640477,-1783.89937804,0.00011855,2]
[401067109,1767900640485,-200.0,0.00011859,2]
[401067110,1767900640496,-500.0,0.00011859,2]
[401067112,1767900640505,-151.0,0.00011859,2]
[401067113,1767900640514,-151.0,0.00011859,2]
[401067115,1767900640524,-151.0,0.00011859,2]
[401067117,1767900640533,-151.0,0.00011859,2]
[401067119,1767900640542,-151.0,0.00011859,2]
[401067121,1767900640551,-151.0,0.00011859,2]
[401067123,1767900640560,-151.0,0.00011859,2]
[401067125,1767900640569,-151.0,0.00011859,2]
[401067127,1767900640578,-151.0,0.00011859,2]
[401067129,1767900640588,-151.0,0.00011859,2]
[401067131,1767900640601,-151.0,0.00011859,2]
[401067133,1767900640610,-151.0,0.00011859,2]
[401067135,1767900640619,-200.0,0.00011859,2]
[401067137,1767900640629,-200.0,0.00011859,2]
[401067139,1767900640640,-765.32,0.00011943,2]
[401067141,1767900640649,-271.3,0.0001204,2]
[401067143,1767900640658,-13072.17915066,0.00012228,2]
[401067145,1767900640668,-1500.0,0.00012256,2]
[401067147,1767900640678,-271.3,0.00012314,2]
[401067149,1767900640688,-160.53,0.00012328,2]
[401067151,1767900640697,-334.8103668,0.0001247,2]
[401067153,1767900640706,-292.95907095,0.0001247,2]
[401067155,1767900640715,-18512.28772443,0.0001252,2]
[401067157,1767900640725,-195.0,0.00012722,2]
[401067159,1767900640735,-255.0,0.00012737,2]
[401067161,1767900640744,-1680.0,0.0001283,2]
[401067163,1767900640754,-250.0,0.00012831,2]
[401067165,1767900640763,-300.0,0.00012833,2]
[401067167,1767900640772,-195.0,0.00012833,2]
[401067169,1767900640782,-13072.17915059,0.00012858,2]
[401067171,1767900640791,-615.0,0.0001288,2]
[401067173,1767900640800,-435.75756433,0.00012919,2]
[401067175,1767900640809,-18512.28772443,0.00013193,2]
[401067177,1767900640817,-334.8103668,0.00013375,2]
[401067179,1767900640827,-765.32,0.00013436,2]
[401067181,1767900640836,-13072.17915059,0.00013488,2]
[401067183,1767900640846,-505.03291198,0.0001369,2]
[401067185,1767900640855,-500.0,0.00013698,2]
[401067188,1767900640864,-585.83,0.00013698,2]
[401067190,1767900640874,-585.83,0.00013698,2]
[401067192,1767900640884,-585.83,0.00013698,2]
[401067194,1767900640892,-585.83,0.00013698,2]
[401067196,1767900640902,-500.0,0.00013698,2]
[401067198,1767900640911,-500.0,0.00013698,2]
[401067200,1767900640920,-500.0,0.00013698,2]
[401067202,1767900640930,-621.72362606,0.00013698,2]
[401067203,1767900640940,-200.0,0.00013698,2]
[401067206,1767900640949,-500.0,0.00013698,2]
[401067207,1767900640958,-500.0,0.00013698,2]
[401067209,1767900640967,-500.0,0.00013698,2]
[401067211,1767900640976,-500.0,0.00013698,2]
[401067213,1767900640985,-500.0,0.00013698,2]
[401067215,1767900640994,-500.0,0.00013698,2]
[401067217,1767900641003,-500.0,0.00013698,2]
[401067219,1767900641013,-525.03126034,0.00013698,2]
[401067222,1767900641025,-500.0,0.00013698,2]
[401067224,1767900641034,-500.0,0.00013698,2]
[401067226,1767900641043,-500.0,0.00013698,2]
[401067228,1767900641053,-500.0,0.00013698,2]
[401067230,1767900641062,-1093.33,0.00013698,2]
[401067232,1767900641071,-1093.33,0.00013698,2]
[401067234,1767900641080,-1093.33,0.00013698,2]
[401067236,1767900641089,-1093.33,0.00013698,2]
[401067238,1767900641098,-1093.33,0.00013698,2]
[401067240,1767900641107,-500.0,0.00013698,2]
[401067242,1767900641116,-500.0,0.00013698,2]
[401067244,1767900641125,-500.0,0.00013698,2]
[401067246,1767900641134,-500.0,0.00013698,2]
[401067248,1767900641143,-500.0,0.00013698,2]
[401067250,1767900641152,-500.0,0.00013698,2]
[401067252,1767900641161,-414.08933578,0.00013698,2]
[401067254,1767900641170,-500.0,0.00013698,2]
[401067256,1767900641179,-500.0,0.00013698,2]
[401067258,1767900641188,-500.0,0.00013698,2]
[401067260,1767900641198,-500.0,0.00013698,2]
[401067261,1767900641208,-537.05653843,0.00013698,2]
[401067263,1767900641218,-500.0,0.00013698,2]
[401067265,1767900641227,-500.0,0.00013698,2]
[401067267,1767900641236,-500.0,0.00013698,2]
[401067269,1767900641245,-500.0,0.00013698,2]
[401067271,1767900641254,-500.0,0.00013698,2]
[401067273,1767900641264,-500.0,0.00013698,2]
[401067275,1767900641273,-500.0,0.00013698,2]
[401067277,1767900641282,-500.0,0.00013698,2]
[401067279,1767900641291,-500.0,0.00013698,2]
[401067281,1767900641300,-500.0,0.00013698,2]
[401067283,1767900641310,-500.0,0.00013698,2]
[401067286,1767900641319,-500.0,0.00013698,2]
[401067287,1767900641328,-500.0,0.00013698,2]
[401067289,1767900641337,-514.71165586,0.00013698,2]
[401067291,1767900641347,-500.0,0.00013698,2]
[401067293,1767900641356,-548.94161459,0.00013698,2]
[401067296,1767900641365,-500.0,0.00013698,2]
[401067297,1767900641375,-500.0,0.00013698,2]
[401067299,1767900641384,-500.0,0.00013698,2]
[401067301,1767900641393,-500.0,0.00013698,2]
[401067303,1767900641403,-516.18277591,0.00013698,2]
[401067305,1767900641412,-500.0,0.00013698,2]
[401067307,1767900641421,-500.0,0.00013698,2]
[401067309,1767900641431,-500.0,0.00013698,2]
[401067311,1767900641441,-500.0,0.00013698,2]
[401067313,1767900641450,-500.0,0.00013698,2]
[401067315,1767900641459,-321.10769147,0.00013698,2]
[401067317,1767900641469,-705.01,0.00013698,2]
[401067319,1767900641479,-705.01,0.00013698,2]
[401067321,1767900641488,-705.01,0.00013698,2]
[401067323,1767900641498,-705.01,0.00013698,2]
[401067326,1767900641508,-705.01,0.0001381,2]
[401067327,1767900641518,-18512.28772443,0.00013865,2]
[401067329,1767900641527,-433.0,0.00013903,2]
[401067331,1767900641536,-500.0,0.00013981,2]
[401067333,1767900641545,-500.0,0.00013981,2]
[401067335,1767900641555,-500.0,0.00013981,2]
[401067337,1767900641564,-500.0,0.00013981,2]
[401067339,1767900641573,-174.0797667,0.00013981,2]
[401067341,1767900641583,-500.0,0.00013981,2]
[401067343,1767900641595,-500.0,0.00013981,2]
[401067345,1767900641604,-500.0,0.00013981,2]
[401067348,1767900641614,-500.0,0.00013981,2]
[401067350,1767900641624,-500.0,0.00013981,2]
[401067351,1767900641635,-500.0,0.00013981,2]
[401067353,1767900641646,-500.0,0.00013981,2]
[401067355,1767900641655,-500.0,0.00013981,2]
[401067358,1767900641667,-568.35,0.00013981,2]